[Event "*** SCC Grand Prix: Titled Tuesday Blitz"]
[Site "Chess.com"]
[Date "2020.08.04"]
[Round "3"]
[White "Slovak_fighter2000"]
[Black "wild_cat99"]
[Result "1-0"]
[WhiteElo "2448"]
[BlackElo "2669"]
[TimeControl "180+1"]
[EndTime "14:14:06 PDT"]
[Termination "Slovak_fighter2000 won on time"]

1. d4 {[%clk 0:03:00.9]} 1... Nf6 {[%clk 0:03:00.2]} 2. Nf3 {[%clk 0:03:00.4]}
2... e6 {[%clk 0:03:00.5]} 3. Bf4 {[%clk 0:02:59.5]} 3... d5 {[%clk 0:03:00.2]}
4. e3 {[%clk 0:02:59.5]} 4... Bd6 {[%clk 0:03:00.6]} 5. Bg3 {[%clk 0:02:57.7]}
5... O-O {[%clk 0:02:58.7]} 6. Bd3 {[%clk 0:02:55.5]} 6... c5 {[%clk 0:02:57.8]}
7. c3 {[%clk 0:02:55.5]} 7... b6 {[%clk 0:02:56.9]} 8. Qe2 {[%clk 0:02:54.8]}
8... Bb7 {[%clk 0:02:56.9]} 9. Nbd2 {[%clk 0:02:54.7]} 9... Ne4 {[%clk
0:02:52.7]} 10. Rd1 {[%clk 0:02:45.1]} 10... f5 {[%clk 0:02:51.2]} 11. Bxd6
{[%clk 0:02:43.7]} 11... Qxd6 {[%clk 0:02:50.8]} 12. Ne5 {[%clk 0:02:43.5]}
12... f4 {[%clk 0:02:39.1]} 13. Nxe4 {[%clk 0:02:20.9]} 13... dxe4 {[%clk
0:02:38.6]} 14. Bc4 {[%clk 0:02:19.8]} 14... f3 {[%clk 0:02:20.3]} 15. gxf3
{[%clk 0:02:14.7]} 15... exf3 {[%clk 0:02:21.2]} 16. Qd3 {[%clk 0:02:06.9]}
16... a6 {[%clk 0:02:08.4]} 17. a4 {[%clk 0:02:02.1]} 17... Nc6 {[%clk
0:01:49.4]} 18. Nxc6 {[%clk 0:01:35.6]} 18... Qxc6 {[%clk 0:01:48.5]} 19. d5
{[%clk 0:01:26.2]} 19... exd5 {[%clk 0:01:40.3]} 20. Bxd5+ {[%clk 0:01:27.1]}
20... Qxd5 {[%clk 0:01:39.5]} 21. Qxd5+ {[%clk 0:01:28]} 21... Bxd5 {[%clk
0:01:40.3]} 22. Rxd5 {[%clk 0:01:28.1]} 22... b5 {[%clk 0:01:35.3]} 23. Rxc5
{[%clk 0:01:23.4]} 23... bxa4 {[%clk 0:01:12.7]} 24. Kd2 {[%clk 0:01:23.4]}
24... Rfb8 {[%clk 0:01:08.8]} 25. Kc2 {[%clk 0:01:22.7]} 25... Rb6 {[%clk
0:01:08]} 26. Ra1 {[%clk 0:01:18]} 26... Rab8 {[%clk 0:01:06.2]} 27. Ra2 {[%clk
0:01:17.8]} 27... Rh6 {[%clk 0:01:00.1]} 28. Rf5 {[%clk 0:01:12.7]} 28... Rxh2
{[%clk 0:00:58.9]} 29. Rxf3 {[%clk 0:01:11.9]} 29... Rf8 {[%clk 0:00:58.2]} 30.
Rxf8+ {[%clk 0:01:11.1]} 30... Kxf8 {[%clk 0:00:59.1]} 31. Rxa4 {[%clk
0:00:50.7]} 31... Rxf2+ {[%clk 0:01:00]} 32. Kd3 {[%clk 0:00:43.8]} 32... Rxb2
{[%clk 0:00:59.2]} 33. Rxa6 {[%clk 0:00:43.5]} 33... h5 {[%clk 0:00:59]} 34. Ke4
{[%clk 0:00:43.3]} 34... Rg2 {[%clk 0:00:54.5]} 35. Kf3 {[%clk 0:00:41.6]} 35...
Rg5 {[%clk 0:00:50.5]} 36. Ra8+ {[%clk 0:00:40.2]} 36... Kf7 {[%clk 0:00:50.2]}
37. e4 {[%clk 0:00:36]} 37... Rc5 {[%clk 0:00:48.5]} 38. Ra3 {[%clk 0:00:31.8]}
38... Kf6 {[%clk 0:00:48.6]} 39. Ke3 {[%clk 0:00:25.7]} 39... Rc6 {[%clk
0:00:30.1]} 40. Kd4 {[%clk 0:00:23.6]} 40... g5 {[%clk 0:00:30]} 41. Kd5 {[%clk
0:00:20.8]} 41... Re6 {[%clk 0:00:29.3]} 42. c4 {[%clk 0:00:18.2]} 42... g4
{[%clk 0:00:29.7]} 43. Ra8 {[%clk 0:00:16.3]} 43... g3 {[%clk 0:00:27.1]} 44.
Rf8+ {[%clk 0:00:15.6]} 44... Ke7 {[%clk 0:00:21]} 45. Rg8 {[%clk 0:00:15.3]}
45... h4 {[%clk 0:00:19.4]} 46. e5 {[%clk 0:00:15.6]} 46... Rh6 {[%clk
0:00:16.2]} 47. c5 {[%clk 0:00:12.9]} 47... h3 {[%clk 0:00:14.2]} 48. Rg7+
{[%clk 0:00:10]} 48... Kf8 {[%clk 0:00:13.9]} 49. Rxg3 {[%clk 0:00:08.5]} 49...
h2 {[%clk 0:00:13.8]} 50. Rf3+ {[%clk 0:00:08.9]} 50... Ke7 {[%clk 0:00:13]} 51.
Rf1 {[%clk 0:00:08.3]} 51... h1=Q+ {[%clk 0:00:12.7]} 52. Rxh1 {[%clk
0:00:08.1]} 52... Rxh1 {[%clk 0:00:13.6]} 53. c6 {[%clk 0:00:08.3]} 53... Rd1+
{[%clk 0:00:13]} 54. Kc5 {[%clk 0:00:08.6]} 54... Ke6 {[%clk 0:00:06.1]} 55. Kb6
{[%clk 0:00:08.5]} 55... Rb1+ {[%clk 0:00:05.8]} 56. Kc7 {[%clk 0:00:06.2]}
56... Kxe5 {[%clk 0:00:01.7]} 57. Kd7 {[%clk 0:00:06.4]} 57... Rd1+ {[%clk
0:00:01.4]} 58. Ke7 {[%clk 0:00:05]} 58... Rc1 {[%clk 0:00:01.2]} 59. Kd7 {[%clk
0:00:04.9]} 59... Rd1+ {[%clk 0:00:01]} 60. Ke7 {[%clk 0:00:05]} 1-0

[Event "*** SCC Grand Prix: Titled Tuesday Blitz"]
[Site "Chess.com"]
[Date "2020.08.04"]
[Round "3"]
[White "tptagain"]
[Black "RobertoJBM"]
[Result "0-1"]
[WhiteElo "2943"]
[BlackElo "2700"]
[TimeControl "180+1"]
[EndTime "14:14:07 PDT"]
[Termination "RobertoJBM won by resignation"]

1. Nf3 {[%clk 0:03:00.9]} 1... d5 {[%clk 0:02:59.8]} 2. g3 {[%clk 0:03:00.6]}
2... Bg4 {[%clk 0:02:58]} 3. Bg2 {[%clk 0:03:00.4]} 3... c6 {[%clk 0:02:58.1]}
4. h3 {[%clk 0:02:59.9]} 4... Bh5 {[%clk 0:02:58]} 5. d3 {[%clk 0:02:59.4]} 5...
Nd7 {[%clk 0:02:57.3]} 6. O-O {[%clk 0:02:59.2]} 6... e6 {[%clk 0:02:56.5]} 7.
e4 {[%clk 0:02:58.9]} 7... Bd6 {[%clk 0:02:56.2]} 8. Re1 {[%clk 0:02:57.8]} 8...
Ne7 {[%clk 0:02:55.3]} 9. Nbd2 {[%clk 0:02:58.4]} 9... O-O {[%clk 0:02:54.9]}
10. d4 {[%clk 0:02:58.9]} 10... Rc8 {[%clk 0:02:48.8]} 11. c3 {[%clk 0:02:55.2]}
11... Re8 {[%clk 0:02:45.8]} 12. e5 {[%clk 0:02:45.8]} 12... Bc7 {[%clk
0:02:45]} 13. b4 {[%clk 0:02:45.1]} 13... a5 {[%clk 0:02:44.4]} 14. Nb3 {[%clk
0:02:39.6]} 14... b6 {[%clk 0:02:43]} 15. g4 {[%clk 0:02:33.7]} 15... Bg6 {[%clk
0:02:42.4]} 16. Nh4 {[%clk 0:02:32]} 16... Ra8 {[%clk 0:02:39.7]} 17. a4 {[%clk
0:02:26.9]} 17... c5 {[%clk 0:02:32.4]} 18. b5 {[%clk 0:02:02.6]} 18... c4
{[%clk 0:02:25.5]} 19. Nd2 {[%clk 0:02:02.7]} 19... Nf8 {[%clk 0:02:24.6]} 20.
Nf1 {[%clk 0:01:57.4]} 20... Bd3 {[%clk 0:02:16.7]} 21. Ng3 {[%clk 0:01:54.8]}
21... Neg6 {[%clk 0:02:14.8]} 22. Nxg6 {[%clk 0:01:45.8]} 22... Nxg6 {[%clk
0:02:12.9]} 23. f4 {[%clk 0:01:42.3]} 23... Nh4 {[%clk 0:01:56.3]} 24. Bf1
{[%clk 0:01:42.3]} 24... Bxf1 {[%clk 0:01:55.1]} 25. Rxf1 {[%clk 0:01:43.2]}
25... f5 {[%clk 0:01:52.9]} 26. gxf5 {[%clk 0:01:36.3]} 26... Nxf5 {[%clk
0:01:51.7]} 27. Nxf5 {[%clk 0:01:36]} 27... exf5 {[%clk 0:01:52.6]} 28. Kh2
{[%clk 0:01:34.5]} 28... Qh4 {[%clk 0:01:45.7]} 29. Qf3 {[%clk 0:01:33]} 29...
Rad8 {[%clk 0:01:44]} 30. Rg1 {[%clk 0:01:30]} 30... Kf7 {[%clk 0:01:41.8]} 31.
Rg5 {[%clk 0:01:22]} 31... g6 {[%clk 0:01:41.4]} 32. Be3 {[%clk 0:01:17.4]}
32... Ke6 {[%clk 0:01:38]} 33. Rag1 {[%clk 0:01:16.6]} 33... Rg8 {[%clk
0:01:34.9]} 34. Bf2 {[%clk 0:01:14.9]} 34... Qh6 {[%clk 0:01:34.3]} 35. h4
{[%clk 0:01:14.7]} 35... Rdf8 {[%clk 0:01:33.6]} 36. h5 {[%clk 0:00:59]} 36...
Bd8 {[%clk 0:01:32.7]} 37. R5g2 {[%clk 0:00:59]} 37... Rg7 {[%clk 0:01:24.8]}
38. Kh1 {[%clk 0:00:55.8]} 38... Rfg8 {[%clk 0:01:22]} 39. Rh2 {[%clk
0:00:48.6]} 39... g5 {[%clk 0:01:10.2]} 40. fxg5 {[%clk 0:00:48.5]} 40... Rxg5
{[%clk 0:01:09.7]} 41. Rxg5 {[%clk 0:00:48.2]} 41... Qxg5 {[%clk 0:01:09.5]} 42.
Rg2 {[%clk 0:00:27.8]} 42... Qxg2+ {[%clk 0:00:26.8]} 43. Qxg2 {[%clk
0:00:28.7]} 43... Rxg2 {[%clk 0:00:27.2]} 44. Kxg2 {[%clk 0:00:29.3]} 44... Bg5
{[%clk 0:00:27.3]} 45. Be1 {[%clk 0:00:29.9]} 45... Bc1 {[%clk 0:00:19.9]} 46.
Kf3 {[%clk 0:00:29.3]} 46... Bg5 {[%clk 0:00:18.9]} 47. Ke2 {[%clk 0:00:28.2]}
47... f4 {[%clk 0:00:16.8]} 48. Kf3 {[%clk 0:00:28.1]} 48... Kf5 {[%clk
0:00:17.2]} 49. Bd2 {[%clk 0:00:25.9]} 49... Bh6 {[%clk 0:00:17.3]} 50. Bc1
{[%clk 0:00:25.8]} 50... Bg5 {[%clk 0:00:17.5]} 51. Ba3 {[%clk 0:00:25.5]} 51...
Ke6 {[%clk 0:00:11.4]} 52. Bd6 {[%clk 0:00:20.4]} 52... Kd7 {[%clk 0:00:11.7]}
53. Kg4 {[%clk 0:00:18.5]} 53... f3 {[%clk 0:00:10.4]} 54. Kxf3 {[%clk
0:00:17.2]} 54... Bd2 {[%clk 0:00:10.6]} 55. Kg4 {[%clk 0:00:13.5]} 55... Bxc3
{[%clk 0:00:11]} 56. Kf5 {[%clk 0:00:14.2]} 56... Bxd4 {[%clk 0:00:11.5]} 57.
Ba3 {[%clk 0:00:14.9]} 57... Be3 {[%clk 0:00:02.9]} 58. e6+ {[%clk 0:00:14.9]}
58... Ke8 {[%clk 0:00:03.4]} 59. Ke5 {[%clk 0:00:14.9]} 59... d4 {[%clk
0:00:04.3]} 60. Bc5 {[%clk 0:00:11.8]} 60... bxc5 {[%clk 0:00:02.8]} 61. b6
{[%clk 0:00:11.7]} 61... Bg1 {[%clk 0:00:03.3]} 62. b7 {[%clk 0:00:09.5]} 62...
Bh2+ {[%clk 0:00:04.2]} 63. Kd5 {[%clk 0:00:09.9]} 63... c3 {[%clk 0:00:05.1]}
0-1

[Event "*** SCC Grand Prix: Titled Tuesday Blitz"]
[Site "Chess.com"]
[Date "2020.08.04"]
[Round "3"]
[White "Chesswizard_2007"]
[Black "PawnEatingZombie"]
[Result "1-0"]
[WhiteElo "2509"]
[BlackElo "2241"]
[TimeControl "180+1"]
[EndTime "14:14:10 PDT"]
[Termination "Chesswizard_2007 won by resignation"]

1. Nf3 {[%clk 0:03:00.2]} 1... d5 {[%clk 0:02:59.4]} 2. c4 {[%clk 0:02:59.8]}
2... e6 {[%clk 0:02:59.3]} 3. g3 {[%clk 0:02:59.5]} 3... dxc4 {[%clk 0:02:59]}
4. Bg2 {[%clk 0:03:00.4]} 4... a6 {[%clk 0:02:57.9]} 5. O-O {[%clk 0:03:00.5]}
5... Nc6 {[%clk 0:02:57.6]} 6. Qc2 {[%clk 0:02:58.8]} 6... e5 {[%clk 0:02:42.5]}
7. Qxc4 {[%clk 0:02:56.7]} 7... Be6 {[%clk 0:02:38.9]} 8. Qa4 {[%clk 0:02:55.4]}
8... f6 {[%clk 0:02:34.4]} 9. Nc3 {[%clk 0:02:53.4]} 9... Bc5 {[%clk 0:02:20.1]}
10. Rd1 {[%clk 0:02:49.2]} 10... Qd7 {[%clk 0:02:11.8]} 11. a3 {[%clk
0:02:11.9]} 11... Nge7 {[%clk 0:02:09.2]} 12. b4 {[%clk 0:02:09.1]} 12... Bb6
{[%clk 0:01:53.3]} 13. Bb2 {[%clk 0:01:59]} 13... O-O {[%clk 0:01:51.1]} 14. Ne4
{[%clk 0:01:56.6]} 14... Rfd8 {[%clk 0:01:37.9]} 15. Rac1 {[%clk 0:01:53.2]}
15... Nd4 {[%clk 0:01:06.2]} 16. Qxd7 {[%clk 0:01:49.9]} 16... Rxd7 {[%clk
0:01:00.8]} 17. Nxd4 {[%clk 0:01:47.2]} 17... exd4 {[%clk 0:01:00.8]} 18. d3
{[%clk 0:01:44]} 18... c6 {[%clk 0:00:59.2]} 19. Nc5 {[%clk 0:01:42.9]} 19...
Bxc5 {[%clk 0:00:58.9]} 20. Rxc5 {[%clk 0:01:43.6]} 20... Bg4 {[%clk 0:00:40]}
21. Kf1 {[%clk 0:01:38.2]} 21... Re8 {[%clk 0:00:38.2]} 22. h3 {[%clk
0:01:36.2]} 22... Be6 {[%clk 0:00:31.7]} 23. a4 {[%clk 0:01:31.6]} 23... b6
{[%clk 0:00:16.2]} 24. Rxc6 {[%clk 0:01:20.8]} 24... Nxc6 {[%clk 0:00:14.3]} 25.
Bxc6 {[%clk 0:01:21.7]} 25... Bxh3+ {[%clk 0:00:09.5]} 26. Ke1 {[%clk
0:01:20.3]} 26... Red8 {[%clk 0:00:06.4]} 27. Bxd7 {[%clk 0:01:19.7]} 27... Rxd7
{[%clk 0:00:06.4]} 28. Rc1 {[%clk 0:01:20.4]} 28... Be6 {[%clk 0:00:04.3]} 29.
Rc6 {[%clk 0:01:19.2]} 29... Bb3 {[%clk 0:00:04.3]} 30. Rxb6 {[%clk 0:01:18.7]}
30... Bxa4 {[%clk 0:00:04.5]} 31. Rxa6 {[%clk 0:01:18.8]} 31... Bb5 {[%clk
0:00:03.5]} 32. Rb6 {[%clk 0:01:18.7]} 32... Ba4 {[%clk 0:00:03.4]} 33. Ra6
{[%clk 0:01:18.5]} 33... Bb5 {[%clk 0:00:03.1]} 34. Ra5 {[%clk 0:01:19.1]} 34...
Bc6 {[%clk 0:00:02.8]} 35. Rc5 {[%clk 0:01:18.5]} 35... Bb7 {[%clk 0:00:02.7]}
36. Rc4 {[%clk 0:01:18.1]} 36... Kf7 {[%clk 0:00:01.7]} 37. Rxd4 {[%clk
0:01:18.3]} 37... Rxd4 {[%clk 0:00:01.9]} 38. Bxd4 {[%clk 0:01:19.2]} 38... h5
{[%clk 0:00:02]} 39. e4 {[%clk 0:01:12.6]} 39... g5 {[%clk 0:00:02.4]} 40. f4
{[%clk 0:01:08.3]} 40... h4 {[%clk 0:00:02.5]} 41. gxh4 {[%clk 0:01:03.7]} 41...
gxh4 {[%clk 0:00:02.3]} 42. b5 {[%clk 0:00:59.3]} 42... f5 {[%clk 0:00:03.2]}
43. e5 {[%clk 0:00:49.7]} 43... h3 {[%clk 0:00:03]} 44. Bg1 {[%clk 0:00:49.5]}
44... Ke6 {[%clk 0:00:02]} 45. Kf2 {[%clk 0:00:48.8]} 45... Kd5 {[%clk
0:00:02.4]} 46. Kg3 {[%clk 0:00:48.3]} 46... Ke6 {[%clk 0:00:02]} 47. Kxh3
{[%clk 0:00:48.2]} 47... Bd5 {[%clk 0:00:02.2]} 48. b6 {[%clk 0:00:45.1]} 48...
Kd7 {[%clk 0:00:02.6]} 49. Kh4 {[%clk 0:00:41.7]} 49... Ke6 {[%clk 0:00:02.7]}
50. Kg5 {[%clk 0:00:42.6]} 50... Bc6 {[%clk 0:00:02.7]} 51. Bc5 {[%clk
0:00:37.3]} 51... Bd5 {[%clk 0:00:01.8]} 52. Kh4 {[%clk 0:00:35]} 52... Bc6
{[%clk 0:00:02.2]} 53. Kg3 {[%clk 0:00:35.4]} 53... Bd5 {[%clk 0:00:02.8]} 54.
Kf2 {[%clk 0:00:35.6]} 54... Bc6 {[%clk 0:00:03.7]} 55. Ke3 {[%clk 0:00:36.4]}
55... Bd5 {[%clk 0:00:04.5]} 56. Kd4 {[%clk 0:00:36.6]} 56... Bc6 {[%clk
0:00:05.1]} 57. Kc4 {[%clk 0:00:37.1]} 57... Kd7 {[%clk 0:00:04.8]} 58. Kb4
{[%clk 0:00:36.5]} 58... Kc8 {[%clk 0:00:05.3]} 59. e6 {[%clk 0:00:35.3]} 59...
Kd8 {[%clk 0:00:04.8]} 60. e7+ {[%clk 0:00:35]} 60... Ke8 {[%clk 0:00:04.8]} 61.
Ka5 {[%clk 0:00:34.6]} 61... Bb7 {[%clk 0:00:05.3]} 62. Kb5 {[%clk 0:00:35.5]}
62... Kd7 {[%clk 0:00:04.8]} 63. d4 {[%clk 0:00:35.2]} 63... Ke8 {[%clk
0:00:05.1]} 64. Kc4 {[%clk 0:00:34]} 64... Kd7 {[%clk 0:00:05.5]} 65. d5 {[%clk
0:00:33.9]} 65... Ke8 {[%clk 0:00:05.5]} 66. Kd4 {[%clk 0:00:31.1]} 66... Kd7
{[%clk 0:00:05.8]} 67. Ke5 {[%clk 0:00:31.2]} 67... Ke8 {[%clk 0:00:05.6]} 68.
Kd6 {[%clk 0:00:25.7]} 68... Ba8 {[%clk 0:00:04.3]} 69. Bb4 {[%clk 0:00:23.6]}
69... Bb7 {[%clk 0:00:04.1]} 70. Ba3 {[%clk 0:00:24]} 70... Ba8 {[%clk
0:00:04.1]} 71. Kc7 {[%clk 0:00:24.4]} 71... Bxd5 {[%clk 0:00:04]} 72. b7 {[%clk
0:00:25.3]} 72... Bxb7 {[%clk 0:00:04.1]} 73. Kxb7 {[%clk 0:00:26.2]} 73... Kd7
{[%clk 0:00:03]} 74. Kb6 {[%clk 0:00:23.8]} 1-0

[Event "*** SCC Grand Prix: Titled Tuesday Blitz"]
[Site "Chess.com"]
[Date "2020.08.04"]
[Round "3"]
[White "davigator"]
[Black "lacafi"]
[Result "1/2-1/2"]
[WhiteElo "2289"]
[BlackElo "2029"]
[TimeControl "180+1"]
[EndTime "14:14:15 PDT"]
[Termination "Game drawn - timeout vs insufficient material"]

1. e4 {[%clk 0:03:00.9]} 1... c6 {[%clk 0:02:59.8]} 2. Nc3 {[%clk 0:02:59.7]}
2... d5 {[%clk 0:03:00.1]} 3. Nf3 {[%clk 0:02:59.9]} 3... dxe4 {[%clk
0:03:00.4]} 4. Nxe4 {[%clk 0:03:00.2]} 4... Nf6 {[%clk 0:03:01.3]} 5. Qe2 {[%clk
0:03:00.3]} 5... Nxe4 {[%clk 0:03:00.5]} 6. Qxe4 {[%clk 0:03:01.2]} 6... e6
{[%clk 0:02:58.8]} 7. d4 {[%clk 0:03:00.2]} 7... Nd7 {[%clk 0:02:53.9]} 8. Bc4
{[%clk 0:02:59.2]} 8... Nf6 {[%clk 0:02:53.6]} 9. Qe2 {[%clk 0:02:59.1]} 9...
Be7 {[%clk 0:02:53.5]} 10. Bd2 {[%clk 0:02:57.9]} 10... O-O {[%clk 0:02:52.9]}
11. O-O-O {[%clk 0:02:57.6]} 11... b5 {[%clk 0:02:53.4]} 12. Bd3 {[%clk
0:02:57]} 12... a5 {[%clk 0:02:53.9]} 13. g4 {[%clk 0:02:52.8]} 13... b4 {[%clk
0:02:49.8]} 14. g5 {[%clk 0:02:52.7]} 14... Nd5 {[%clk 0:02:49.9]} 15. Ne5
{[%clk 0:02:50.5]} 15... Qb6 {[%clk 0:02:47.2]} 16. Qe4 {[%clk 0:02:44.5]} 16...
g6 {[%clk 0:02:46.5]} 17. Ng4 {[%clk 0:02:44.5]} 17... a4 {[%clk 0:02:36.2]} 18.
Qe5 {[%clk 0:02:32.7]} 18... f6 {[%clk 0:02:26.8]} 19. gxf6 {[%clk 0:02:32.1]}
19... Nxf6 {[%clk 0:02:20.9]} 20. Nh6+ {[%clk 0:02:31.7]} 20... Kg7 {[%clk
0:02:13.7]} 21. Bc4 {[%clk 0:02:31.6]} 21... Qb8 {[%clk 0:01:35.7]} 22. Qe2
{[%clk 0:02:13.6]} 22... Nd5 {[%clk 0:00:39.3]} 23. Bxd5 {[%clk 0:02:06.7]}
23... cxd5 {[%clk 0:00:37.2]} 24. Ng4 {[%clk 0:02:06.9]} 24... b3 {[%clk
0:00:36.1]} 25. cxb3 {[%clk 0:01:36.7]} 25... axb3 {[%clk 0:00:35.1]} 26. a3
{[%clk 0:01:32.6]} 26... Qc7+ {[%clk 0:00:33.1]} 27. Bc3 {[%clk 0:01:30.1]}
27... Bxa3 {[%clk 0:00:30.8]} 28. Qe5+ {[%clk 0:01:26.1]} 28... Qxe5 {[%clk
0:00:30.5]} 29. dxe5 {[%clk 0:01:26.3]} 29... Bc5 {[%clk 0:00:28.7]} 30. Rdf1
{[%clk 0:01:11.4]} 30... Ba6 {[%clk 0:00:17.6]} 31. Rd1 {[%clk 0:01:05.9]} 31...
Be2 {[%clk 0:00:17]} 32. Nf6 {[%clk 0:01:04.4]} 32... Bxd1 {[%clk 0:00:15.7]}
33. Rxd1 {[%clk 0:01:03.4]} 33... Ra1+ {[%clk 0:00:14.7]} 34. Kd2 {[%clk
0:01:03.4]} 34... Rxd1+ {[%clk 0:00:14.9]} 35. Kxd1 {[%clk 0:01:04.1]} 35...
Bxf2 {[%clk 0:00:15]} 36. Ke2 {[%clk 0:01:03.1]} 36... Bc5 {[%clk 0:00:13.7]}
37. Kd3 {[%clk 0:01:02.3]} 37... Be7 {[%clk 0:00:13.7]} 38. Nd7 {[%clk
0:00:56.9]} 38... Rf2 {[%clk 0:00:12.3]} 39. h4 {[%clk 0:00:42.8]} 39... Rh2
{[%clk 0:00:08.4]} 40. Bd4 {[%clk 0:00:40.1]} 40... Rxh4 {[%clk 0:00:08.3]} 41.
Kc3 {[%clk 0:00:38.6]} 41... h5 {[%clk 0:00:08.5]} 42. Bf2 {[%clk 0:00:34.4]}
42... Rh3+ {[%clk 0:00:08.5]} 43. Kd2 {[%clk 0:00:34.1]} 43... Bg5+ {[%clk
0:00:07.1]} 44. Ke2 {[%clk 0:00:31.6]} 44... Rh2 {[%clk 0:00:07.1]} 45. Kf3
{[%clk 0:00:31.1]} 45... Bc1 {[%clk 0:00:06.9]} 46. Nc5 {[%clk 0:00:30]} 46...
Bxb2 {[%clk 0:00:06.2]} 47. Nxe6+ {[%clk 0:00:29.6]} 47... Kg8 {[%clk
0:00:04.7]} 48. Nf4 {[%clk 0:00:29.9]} 48... Bxe5 {[%clk 0:00:04.5]} 49. Nxg6
{[%clk 0:00:30.1]} 49... Bc7 {[%clk 0:00:03.9]} 50. Bd4 {[%clk 0:00:29.7]} 50...
Rh1 {[%clk 0:00:04]} 51. Kg2 {[%clk 0:00:29.6]} 51... Rd1 {[%clk 0:00:04.2]} 52.
Bc3 {[%clk 0:00:27.9]} 52... b2 {[%clk 0:00:04.3]} 53. Bxb2 {[%clk 0:00:27]}
53... Rd2+ {[%clk 0:00:04.4]} 54. Kh3 {[%clk 0:00:27.3]} 54... Rxb2 {[%clk
0:00:05]} 55. Kh4 {[%clk 0:00:27.9]} 55... Kg7 {[%clk 0:00:05.6]} 56. Ne7 {[%clk
0:00:26]} 56... Rh2+ {[%clk 0:00:06.1]} 57. Kg5 {[%clk 0:00:23.7]} 57... d4
{[%clk 0:00:06.3]} 58. Nf5+ {[%clk 0:00:23]} 58... Kf7 {[%clk 0:00:06.7]} 59.
Nxd4 {[%clk 0:00:23.1]} 59... Bd8+ {[%clk 0:00:06.9]} 60. Kf5 {[%clk 0:00:21.6]}
60... h4 {[%clk 0:00:07.3]} 61. Kg4 {[%clk 0:00:21.4]} 61... Rg2+ {[%clk
0:00:06]} 62. Kh3 {[%clk 0:00:19.8]} 62... Ra2 {[%clk 0:00:06.1]} 63. Nf5 {[%clk
0:00:18.6]} 63... Ra3+ {[%clk 0:00:05.4]} 64. Kg2 {[%clk 0:00:17.9]} 64... Kg6
{[%clk 0:00:03.5]} 65. Nd6 {[%clk 0:00:17.3]} 65... Bf6 {[%clk 0:00:02.2]} 66.
Ne4 {[%clk 0:00:17.1]} 66... Kf5 {[%clk 0:00:01.8]} 67. Nc5 {[%clk 0:00:16.6]}
67... Kg4 {[%clk 0:00:01.7]} 68. Ne4 {[%clk 0:00:15.7]} 68... Ra2+ {[%clk
0:00:02.1]} 69. Kf1 {[%clk 0:00:15.9]} 69... Be5 {[%clk 0:00:02.3]} 70. Ke1
{[%clk 0:00:14.8]} 70... Kf4 {[%clk 0:00:02.4]} 71. Nf2 {[%clk 0:00:14.3]} 71...
Kg3 {[%clk 0:00:01.2]} 72. Nd3 {[%clk 0:00:14.4]} 1/2-1/2